[Event "Lindores Abbey Rapid Challenge-KO"]
[White "Ding, Liren"]
[Black "Yu, Yangyi"]
[Site "Online"]
[Round "1.1"]
[Annotator "ChessBase"]
[Result "1/2-1/2"]
[Date "2020.05.23"]
[WhiteElo "2836"]
[BlackElo "2738"]
[PlyCount "74"]
[TimeControl "900+10"]

1. d4 d5 2. c4 {[%emt 0:0:12]} dxc4 {[%emt 0:0:12]} 3. Nf3 {[%emt 0:0:2]} Nf6 {[%emt 0:0:3]} 4. e3 {[%emt 0:0:2]} e6 {[%emt 0:0:1]} 5. Bxc4 {[%emt 0:0:1]
} c5 {[%emt 0:0:2]} 6. 0-0 {[%emt 0:0:1]} a6 {[%emt 0:0:2]} 7. dxc5 {[%emt 0:0:2]} Bxc5 {[%emt 0:0:2]} 8. Qxd8+ {[%emt 0:0:3]} Kxd8 {[%emt 0:0:2]
} 9. Be2 {[%emt 0:0:0]} Ke7 {[%emt 0:0:4]} 10. Nc3 {[%emt 0:0:0]} Nbd7 {[%emt 0:1:52]} 11. e4 {[%emt 0:2:22]} b6 {[%emt 0:1:6]} 12. e5 {[%emt 0:0:29]} Ng4 {[%emt 0:0:18]} 13. Bf4 {[%emt 0:0:56]} f6 {[%emt 0:0:0]} 14. exf6+ {[%emt 0:0:49]} gxf6 {[%emt 0:0:8]} 15. h3 {[%emt 0:2:22]
} Nge5 {[%emt 0:0:8]} 16. Nxe5 {[%emt 0:1:14]} Nxe5 {[%emt 0:0:2]} 17. Bxe5 {[%emt 0:0:6]} fxe5 {[%emt 0:0:3]} 18. Bf3 {[%emt 0:0:2]} Ra7 {[%emt 0:0:4]
} 19. Rac1 {[%emt 0:0:39]} Bd7 {[%emt 0:0:30]} 20. Rc2 {[%emt 0:0:52]
} Bd4 {[%emt 0:1:26]} 21. Rfc1 {[%emt 0:0:12]} Rc8 {[%emt 0:0:0]} 22. g4 {[%emt 0:1:7]} h6 {[%emt 0:2:48]} 23. Kg2 {[%emt 0:0:10]} a5 {[%emt 0:0:4]
} 24. Ne2 {[%emt 0:0:24]} Rxc2 {[%emt 0:0:14]} 25. Rxc2 {[%emt 0:0:0]
} Bb5 {[%emt 0:0:7]} 26. h4 {[%emt 0:0:37]} Rd7 {[%emt 0:0:0]} 27. Ng3 {[%emt 0:0:24]} Bd3 {[%emt 0:0:23]} 28. Rd2 {[%emt 0:0:3]} Bc4 {[%emt 0:1:11]} 29. b3 {[%emt 0:0:6]} Bb5 {[%emt 0:0:17]} 30. a4 {[%emt 0:0:0]} Ba6 {[%emt 0:0:2]} 31. Be4 {[%emt 0:0:6]} Rd8 {[%emt 0:1:48]} 32. Nh5 {[%emt 0:2:3]} Rg8 {[%emt 0:0:11]} 33. Kg3 {[%emt 0:0:5]} Bc8 {[%emt 0:0:9]
} 34. Bc6 {[%emt 0:0:24]} Kd6 {[%emt 0:0:23]} 35. Be4 {[%emt 0:0:0]} Ke7 {[%emt 0:0:2]} 36. Rd3 {[%emt 0:1:44]} Ba6 {[%emt 0:0:33]} 37. Rd2 {[%emt 0:0:21]} Bc8 {[%emt 0:0:2]} 1/2-1/2

[Event "Lindores Abbey Rapid Challenge-KO"]
[White "Nakamura, Hikaru"]
[Black "Aronian, Levon"]
[Site "Online"]
[Round "1.1"]
[Annotator "ChessBase"]
[Result "1-0"]
[Date "2020.05.23"]
[WhiteElo "2829"]
[BlackElo "2778"]
[PlyCount "93"]
[TimeControl "900+10"]

1. e4 e5 2. Nf3 {[%emt 0:0:11]} Nf6 {[%emt 0:0:12]} 3. Nxe5 {[%emt 0:0:2]} d6 {[%emt 0:0:1]} 4. Nf3 {[%emt 0:0:0]} Nxe4 {[%emt 0:0:1]} 5. Nc3 {[%emt 0:0:0]
} Nxc3 {[%emt 0:0:1]} 6. dxc3 {[%emt 0:0:0]} Be7 {[%emt 0:0:0]} 7. Be3 {[%emt 0:0:1]} 0-0 {[%emt 0:0:1]} 8. Qd2 {[%emt 0:0:0]} Nd7 {[%emt 0:0:1]
} 9. 0-0-0 {[%emt 0:0:1]} c6 {[%emt 0:0:1]} 10. h4 {[%emt 0:0:0]} Re8 {[%emt 0:0:1]} 11. Bd3 {[%emt 0:0:5]} Nf6 {[%emt 0:0:3]} 12. h5 {[%emt 0:0:56]} Bg4 {[%emt 0:2:27]} 13. Rde1 {[%emt 0:1:1]} Qd7 {[%emt 0:2:9]
} 14. h6 {[%emt 0:2:13]} g6 {[%emt 0:2:34]} 15. Nd4 {[%emt 0:0:0]} a6 {[%emt 0:1:16]} 16. f3 {[%emt 0:0:21]} Be6 {[%emt 0:0:29]} 17. Nxe6 {[%emt 0:0:7]} fxe6 {[%emt 0:0:38]} 18. Kb1 {[%emt 0:0:26]} b5 {[%emt 0:0:13]
} 19. g4 {[%emt 0:0:18]} e5 {[%emt 0:0:30]} 20. c4 {[%emt 0:0:0]} Qe6 {[%emt 0:1:0]} 21. Qe2 {[%emt 0:0:3]} Rab8 {[%emt 0:0:28]} 22. g5 {[%emt 0:1:39]} Nd7 {[%emt 0:0:7]} 23. Ka1 {[%emt 0:0:23]} bxc4 {[%emt 0:0:0]} 24. Bxc4 {[%emt 0:0:2]} d5 {[%emt 0:0:1]} 25. Bb3 {[%emt 0:0:3]} Nc5 {[%emt 0:1:56]} 26. Bxc5 {[%emt 0:0:15]} Bxc5 {[%emt 0:0:0]} 27. Qxa6 {[%emt 0:0:1]
} Bf2 {[%emt 0:0:44]} 28. Re2 {[%emt 0:1:11]} Bg3 {[%emt 0:0:0]} 29. c4 {[%emt 0:0:18]} d4 {[%emt 0:1:16]} 30. c5 {[%emt 0:0:4]} Rxb3 {[%emt 0:0:10]
} 31. axb3 {[%emt 0:0:0]} Qxb3 {[%emt 0:0:49]} 32. Qxc6 {[%emt 0:0:42]
} Rb8 {[%emt 0:0:4]} 33. Kb1 {[%emt 0:0:28]} Qf7 {[%emt 0:0:0]} 34. Qf6 {[%emt 0:0:19]} Qxf6 {[%emt 0:0:48]} 35. gxf6 {[%emt 0:0:0]} Kf7 {[%emt 0:0:1]} 36. c6 {[%emt 0:0:11]} Kxf6 {[%emt 0:0:2]} 37. c7 {[%emt 0:0:7]
} Rc8 {[%emt 0:0:2]} 38. Rc1 {[%emt 0:0:1]} Ke7 {[%emt 0:0:0]} 39. Rc4 {[%emt 0:0:26]} Kd7 {[%emt 0:0:48]} 40. Rec2 {[%emt 0:0:2]} g5 {[%emt 0:0:3]} 41. b4 {[%emt 0:0:14]} g4 {[%emt 0:0:3]} 42. fxg4 {[%emt 0:0:0]} Be1 {[%emt 0:0:3]} 43. Re2 {[%emt 0:0:7]} Bg3 {[%emt 0:0:7]} 44. b5 {[%emt 0:0:1]} Rxc7 {[%emt 0:0:18]} 45. Rxc7+ {[%emt 0:0:2]} Kxc7 {[%emt 0:0:0]
} 46. g5 {[%emt 0:0:1]} d3 {[%emt 0:0:1]} 47. Re4 {[%emt 0:0:0]} 1-0

[Event "Lindores Abbey Rapid Challenge-KO"]
[White "Aronian, Levon"]
[Black "Nakamura, Hikaru"]
[Site "Online"]
[Round "1.1"]
[Annotator "ChessBase"]
[Result "1/2-1/2"]
[Date "2020.05.23"]
[WhiteElo "2778"]
[BlackElo "2829"]
[PlyCount "82"]
[TimeControl "900+10"]

1. d4 Nf6 2. c4 {[%emt 0:0:13]} e6 {[%emt 0:0:11]} 3. Nf3 {[%emt 0:0:2]} d5 {[%emt 0:0:1]} 4. Nc3 {[%emt 0:0:2]} Be7 {[%emt 0:0:1]} 5. Bf4 {[%emt 0:0:0]} 0-0 {[%emt 0:0:1]} 6. e3 {[%emt 0:0:3]} Nbd7 {[%emt 0:0:1]} 7. c5 {[%emt 0:0:1]} c6 {[%emt 0:0:1]} 8. h3 {[%emt 0:0:1]} b6 {[%emt 0:0:0]} 9. b4 {[%emt 0:0:2]} a5 {[%emt 0:0:1]} 10. a3 {[%emt 0:0:1]} h6 {[%emt 0:0:0]} 11. Qb1 {[%emt 0:0:16]} Ne4 {[%emt 0:3:44]} 12. Nxe4 {[%emt 0:0:4]} dxe4 {[%emt 0:0:0]} 13. Ne5 {[%emt 0:0:1]} Nxe5 {[%emt 0:0:4]} 14. Bxe5 {[%emt 0:0:0]
} Qd5 {[%emt 0:0:1]} 15. Qb2 {[%emt 0:0:2]} b5 {[%emt 0:0:0]} 16. Be2 {[%emt 0:1:27]} a4 {[%emt 0:1:4]} 17. 0-0 {[%emt 0:0:23]} Bd7 {[%emt 0:0:11]} 18. f3 {[%emt 0:0:40]} f5 {[%emt 0:0:45]} 19. Qd2 {[%emt 0:0:0]} Be8 {[%emt 0:0:21]} 20. fxe4 {[%emt 0:0:49]} fxe4 {[%emt 0:0:0]} 21. Rxf8+ {[%emt 0:0:2]} Bxf8 {[%emt 0:0:1]} 22. Bd1 {[%emt 0:0:3]} Bg6 {[%emt 0:0:28]
} 23. Bc2 {[%emt 0:0:10]} Be7 {[%emt 0:0:2]} 24. Bb1 {[%emt 0:0:0]} Rf8 {[%emt 0:0:3]} 25. Ba2 {[%emt 0:0:3]} Qd7 {[%emt 0:0:2]} 26. Qe1 {[%emt 0:0:38]} Kh7 {[%emt 0:1:12]} 27. Qg3 {[%emt 0:0:54]} Bd8 {[%emt 0:1:5]
} 28. Rf1 {[%emt 0:0:35]} Rxf1+ {[%emt 0:0:3]} 29. Kxf1 {[%emt 0:0:0]
} Qf7+ {[%emt 0:0:2]} 30. Ke1 {[%emt 0:2:53]} Qf5 {[%emt 0:0:0]} 31. Qf4 {[%emt 0:0:35]} Qf7 {[%emt 0:1:11]} 32. Bb1 {[%emt 0:0:21]} Kg8 {[%emt 0:0:4]} 33. Qxf7+ {[%emt 0:1:42]} Kxf7 {[%emt 0:0:2]} 34. Kf2 {[%emt 0:0:7]
} Bf5 {[%emt 0:0:23]} 35. g4 {[%emt 0:0:8]} Bh7 {[%emt 0:0:0]} 36. Kg3 {[%emt 0:0:12]} g5 {[%emt 0:0:2]} 37. Bc2 {[%emt 0:0:20]} Bg6 {[%emt 0:0:23]} 38. Bd1 {[%emt 0:0:7]} Kg8 {[%emt 0:0:27]} 39. Be2 {[%emt 0:0:2]
} Be8 {[%emt 0:0:13]} 40. Bf1 {[%emt 0:0:4]} Kf8 {[%emt 0:0:0]} 41. Bg2 {[%emt 0:0:3]} Bg6 {[%emt 0:0:1]} 1/2-1/2

[Event "Lindores Abbey Rapid Challenge-KO"]
[White "Aronian, Levon"]
[Black "Nakamura, Hikaru"]
[Site "Online"]
[Round "1.1"]
[Annotator "ChessBase"]
[Result "1-0"]
[Date "2020.05.23"]
[WhiteElo "2778"]
[BlackElo "2829"]
[PlyCount "235"]
[TimeControl "900+10"]

1. d4 Nf6 2. c4 {[%emt 0:0:14]} e6 {[%emt 0:0:11]} 3. Nf3 {[%emt 0:0:4]} d5 {[%emt 0:0:2]} 4. Nc3 {[%emt 0:0:2]} Be7 {[%emt 0:0:3]} 5. Bf4 {[%emt 0:0:0]} 0-0 {[%emt 0:0:2]} 6. e3 {[%emt 0:0:2]} Nbd7 {[%emt 0:0:1]} 7. c5 {[%emt 0:0:2]} c6 {[%emt 0:0:4]} 8. h3 {[%emt 0:0:2]} b6 {[%emt 0:0:1]} 9. b4 {[%emt 0:0:2]} a5 {[%emt 0:0:1]} 10. a3 {[%emt 0:0:1]} h6 {[%emt 0:0:0]} 11. Bd3 {[%emt 0:0:1]} Ba6 {[%emt 0:0:2]} 12. 0-0 {[%emt 0:0:2]} Qc8 {[%emt 0:0:3]} 13. Na4 {[%emt 0:0:1]} Qb7 {[%emt 0:0:26]} 14. Qc2 {[%emt 0:3:50]
} Bxd3 {[%emt 0:0:37]} 15. Qxd3 {[%emt 0:0:0]} Ne4 {[%emt 0:0:0]} 16. Rfb1 {[%emt 0:0:30]} axb4 {[%emt 0:3:42]} 17. axb4 {[%emt 0:0:0]} b5 {[%emt 0:0:8]} 18. Nc3 {[%emt 0:0:14]} f5 {[%emt 0:0:14]} 19. Ne2 {[%emt 0:0:51]
} Bf6 {[%emt 0:0:20]} 20. Ne5 {[%emt 0:0:22]} Ng5 {[%emt 0:0:0]} 21. Nxd7 {[%emt 0:1:20]} Qxd7 {[%emt 0:0:4]} 22. Nc1 {[%emt 0:0:3]} Nf7 {[%emt 0:1:6]} 23. Qc3 {[%emt 0:0:4]} Rfe8 {[%emt 0:0:28]} 24. Nd3 {[%emt 0:0:35]
} Qb7 {[%emt 0:0:5]} 25. Rb3 {[%emt 0:0:52]} Ra4 {[%emt 0:0:0]} 26. Rxa4 {[%emt 0:0:10]} bxa4 {[%emt 0:0:0]} 27. Ra3 {[%emt 0:0:1]} Qb5 {[%emt 0:0:2]} 28. Qc2 {[%emt 0:0:6]} Ra8 {[%emt 0:0:53]} 29. Bc7 {[%emt 0:0:2]
} Bd8 {[%emt 0:0:34]} 30. Ba5 {[%emt 0:0:3]} Bf6 {[%emt 0:0:0]} 31. f4 {[%emt 0:3:19]} g5 {[%emt 0:0:2]} 32. g3 {[%emt 0:0:49]} h5 {[%emt 0:1:29]
} 33. Qxa4 {[%emt 0:0:15]} Qxa4 {[%emt 0:0:13]} 34. Rxa4 {[%emt 0:0:2]
} h4 {[%emt 0:0:1]} 35. gxh4 {[%emt 0:2:0]} gxf4 {[%emt 0:0:0]} 36. Nxf4 {[%emt 0:0:1]} e5 {[%emt 0:0:0]} 37. Ng6 {[%emt 0:0:8]} exd4 {[%emt 0:0:30]} 38. exd4 {[%emt 0:0:0]} Bxd4+ {[%emt 0:0:5]} 39. Kf1 {[%emt 0:0:2]} Bf6 {[%emt 0:0:0]} 40. Ra2 {[%emt 0:0:13]} Kh7 {[%emt 0:0:0]} 41. h5 {[%emt 0:0:21]} Ng5 {[%emt 0:0:6]} 42. Nf4 {[%emt 0:3:36]} Ne4 {[%emt 0:0:23]} 43. Nd3 {[%emt 0:0:38]} Bd4 {[%emt 0:0:37]} 44. Rg2 {[%emt 0:0:15]
} f4 {[%emt 0:1:11]} 45. Nxf4 {[%emt 0:0:3]} Rf8 {[%emt 0:0:0]} 46. Bc7 {[%emt 0:0:2]} Rf7 {[%emt 0:0:1]} 47. Ke2 {[%emt 0:0:35]} Bc3 {[%emt 0:1:23]} 48. Ne6 {[%emt 0:0:18]} Bxb4 {[%emt 0:0:18]} 49. Bd6 {[%emt 0:0:16]
} Bc3 {[%emt 0:0:18]} 50. Ng5+ {[%emt 0:0:11]} Nxg5 {[%emt 0:0:0]} 51. Rxg5 {[%emt 0:0:0]} Bb4 {[%emt 0:0:21]} 52. Rg4 {[%emt 0:0:16]} Rb7 {[%emt 0:0:2]} 53. Kd3 {[%emt 0:0:23]} Rb5 {[%emt 0:0:6]} 54. Kd4 {[%emt 0:0:2]
} Ba3 {[%emt 0:0:1]} 55. Rg6 {[%emt 0:0:8]} Rb3 {[%emt 0:0:0]} 56. Ke5 {[%emt 0:0:3]} Rxh3 {[%emt 0:0:4]} 57. Ke6 {[%emt 0:0:3]} Rxh5 {[%emt 0:0:7]} 58. Rg3 {[%emt 0:0:3]} Bb4 {[%emt 0:0:35]} 59. Kd7 {[%emt 0:0:1]
} d4 {[%emt 0:0:10]} 60. Kxc6 {[%emt 0:0:2]} Rf5 {[%emt 0:0:0]} 61. Rd3 {[%emt 0:0:3]} Bc3 {[%emt 0:0:6]} 62. Kd7 {[%emt 0:0:2]} Bb4 {[%emt 0:0:4]} 63. Kc6 {[%emt 0:0:5]} Bc3 {[%emt 0:0:1]} 64. Rg3 {[%emt 0:0:17]
} Bb4 {[%emt 0:0:5]} 65. Kb5 {[%emt 0:0:7]} Be1 {[%emt 0:0:0]} 66. Rh3+ {[%emt 0:0:13]} Kg6 {[%emt 0:0:3]} 67. Kc4 {[%emt 0:0:1]} Ba5 {[%emt 0:0:9]} 68. Kxd4 {[%emt 0:0:12]} Kf7 {[%emt 0:0:13]} 69. Rh7+ {[%emt 0:0:8]
} Kf6 {[%emt 0:0:5]} 70. Ke4 {[%emt 0:0:6]} Rf1 {[%emt 0:0:0]} 71. Kd5 {[%emt 0:0:4]} Rd1+ {[%emt 0:0:8]} 72. Kc6 {[%emt 0:0:2]} Bb4 {[%emt 0:0:2]} 73. Rh4 {[%emt 0:0:5]} Ba3 {[%emt 0:0:10]} 74. Rh3 {[%emt 0:0:21]
} Bb4 {[%emt 0:0:3]} 75. Rb3 {[%emt 0:0:7]} Rd4 {[%emt 0:0:0]} 76. Kb5 {[%emt 0:0:3]} Bxc5 {[%emt 0:0:6]} 77. Kxc5 {[%emt 0:0:3]} Rd1 {[%emt 0:0:6]} 78. Re3 {[%emt 0:0:7]} Rc1+ {[%emt 0:0:7]} 79. Kd5 {[%emt 0:0:7]
} Rd1+ {[%emt 0:0:0]} 80. Kc6 {[%emt 0:0:1]} Kf5 {[%emt 0:0:0]} 81. Rf3+ {[%emt 0:0:7]} Ke4 {[%emt 0:0:8]} 82. Rf4+ {[%emt 0:0:2]} Ke3 {[%emt 0:0:1]} 83. Rh4 {[%emt 0:0:4]} Kf3 {[%emt 0:0:5]} 84. Kc5 {[%emt 0:0:3]
} Ke3 {[%emt 0:0:10]} 85. Be5 {[%emt 0:0:3]} Rd8 {[%emt 0:0:0]} 86. Bd6 {[%emt 0:0:4]} Ra8 {[%emt 0:0:7]} 87. Kd5 {[%emt 0:0:4]} Ra5+ {[%emt 0:0:2]} 88. Bc5+ {[%emt 0:0:0]} Kf3 {[%emt 0:0:2]} 89. Rc4 {[%emt 0:0:2]
} Rb5 {[%emt 0:0:20]} 90. Ke5 {[%emt 0:0:9]} Rb8 {[%emt 0:0:0]} 91. Rc2 {[%emt 0:0:19]} Re8+ {[%emt 0:0:19]} 92. Kf5 {[%emt 0:0:1]} Rc8 {[%emt 0:0:1]} 93. Rc3+ {[%emt 0:0:17]} Ke2 {[%emt 0:0:3]} 94. Ke4 {[%emt 0:0:5]
} Re8+ {[%emt 0:0:3]} 95. Kf4 {[%emt 0:0:1]} Rd8 {[%emt 0:0:0]} 96. Rh3 {[%emt 0:0:17]} Re8 {[%emt 0:0:6]} 97. Bd4 {[%emt 0:0:5]} Kd2 {[%emt 0:0:15]} 98. Be5 {[%emt 0:0:3]} Kc2 {[%emt 0:0:3]} 99. Ke4 {[%emt 0:0:5]
} Rd8 {[%emt 0:0:29]} 100. Rc3+ {[%emt 0:0:6]} Kd2 {[%emt 0:0:0]} 101. Rb3 {[%emt 0:0:2]} Rc8 {[%emt 0:0:6]} 102. Rh3 {[%emt 0:0:4]
} Kc2 {[%emt 0:0:6]} 103. Rh2+ {[%emt 0:0:1]} Kb3 {[%emt 0:0:6]} 104. Rb2+ {[%emt 0:0:3]} Ka3 {[%emt 0:0:2]} 105. Rb7 {[%emt 0:0:2]} Re8 {[%emt 0:1:0]
} 106. Kd5 {[%emt 0:0:9]} Rc8 {[%emt 0:0:18]} 107. Bc7 {[%emt 0:0:12]
} Rh8 {[%emt 0:0:3]} 108. Bd6+ {[%emt 0:0:3]} Ka2 {[%emt 0:0:0]} 109. Kc4 {[%emt 0:0:10]} Rc8+ {[%emt 0:1:13]} 110. Bc7 {[%emt 0:0:0]} Rf8 {[%emt 0:0:9]} 111. Be5 {[%emt 0:0:8]} Rc8+ {[%emt 0:0:6]} 112. Kd3 {[%emt 0:0:3]} Rc1 {[%emt 0:0:3]} 113. Rb2+ {[%emt 0:0:12]} Ka1 {[%emt 0:0:10]
} 114. Rf2+ {[%emt 0:2:2]} Kb1 {[%emt 0:0:2]} 115. Bd4 {[%emt 0:0:1]
} Rd1+ {[%emt 0:0:15]} 116. Kc3 {[%emt 0:0:2]} Re1 {[%emt 0:0:0]} 117. Kb3 {[%emt 0:0:21]} Kc1 {[%emt 0:0:4]} 118. Bc3 {[%emt 0:0:1]
} 1-0

[Event "Lindores Abbey Rapid Challenge-KO"]
[White "Yu, Yangyi"]
[Black "Ding, Liren"]
[Site "Online"]
[Round "1.1"]
[Annotator "ChessBase"]
[Result "1-0"]
[Date "2020.05.23"]
[WhiteElo "2738"]
[BlackElo "2836"]
[PlyCount "137"]
[TimeControl "900+10"]

1. e4 e5 2. Nf3 {[%emt 0:10:24]} Nc6 {[%emt 0:11:21]} 3. Bc4 {[%emt 0:0:11]} Nf6 {[%emt 0:0:12]} 4. Ng5 {[%emt 0:0:13]} d5 {[%emt 0:0:16]} 5. exd5 {[%emt 0:0:11]
} Na5 {[%emt 0:0:11]} 6. Bb5+ {[%emt 0:0:11]} c6 {[%emt 0:0:0]} 7. dxc6 {[%emt 0:0:11]} bxc6 {[%emt 0:0:11]} 8. Bd3 {[%emt 0:0:12]} Nd5 {[%emt 0:0:11]} 9. Nf3 {[%emt 0:0:14]} Bd6 {[%emt 0:0:11]} 10. Nc3 {[%emt 0:0:0]} 0-0 {[%emt 0:0:18]} 11. Be2 {[%emt 0:0:16]} f5 {[%emt 0:0:11]} 12. d3 {[%emt 0:0:11]} Nxc3 {[%emt 0:0:15]} 13. bxc3 {[%emt 0:0:13]} e4 {[%emt 0:0:11]
} 14. Nd4 {[%emt 0:0:14]} Qf6 {[%emt 0:0:15]} 15. 0-0 {[%emt 0:0:0]} Qe5 {[%emt 0:0:19]} 16. f4 {[%emt 0:0:21]} Qe7 {[%emt 0:0:28]} 17. Kh1 {[%emt 0:0:15]} Bd7 {[%emt 0:0:17]} 18. Rb1 {[%emt 0:0:16]} Rad8 {[%emt 0:0:12]
} 19. Bd2 {[%emt 0:0:21]} c5 {[%emt 0:0:29]} 20. Nb5 {[%emt 0:0:0]} Bb8 {[%emt 0:0:12]} 21. dxe4 {[%emt 0:0:17]} fxe4 {[%emt 0:0:15]} 22. Qe1 {[%emt 0:0:39]} e3 {[%emt 0:0:14]} 23. Bc1 {[%emt 0:0:48]} Bxf4 {[%emt 0:0:12]
} 24. c4 {[%emt 0:0:13]} Nc6 {[%emt 0:0:14]} 25. Bf3 {[%emt 0:0:0]} Kh8 {[%emt 0:0:19]} 26. Nc3 {[%emt 0:0:20]} Qe5 {[%emt 0:0:21]} 27. Nd5 {[%emt 0:0:12]} Bxh2 {[%emt 0:0:13]} 28. Qxe3 {[%emt 0:0:12]} Nd4 {[%emt 0:0:16]
} 29. Qxe5 {[%emt 0:0:37]} Bxe5 {[%emt 0:0:10]} 30. Be3 {[%emt 0:0:12]
} Bc6 {[%emt 0:0:15]} 31. Be4 {[%emt 0:0:24]} Ne2 {[%emt 0:0:0]} 32. Rxf8+ {[%emt 0:0:36]} Rxf8 {[%emt 0:0:10]} 33. Bf3 {[%emt 0:0:11]} Nd4 {[%emt 0:0:12]} 34. Bxd4 {[%emt 0:0:12]} Bxd4 {[%emt 0:0:11]} 35. Re1 {[%emt 0:0:16]
} g6 {[%emt 0:0:35]} 36. Re6 {[%emt 0:0:12]} Bxd5 {[%emt 0:0:0]} 37. cxd5 {[%emt 0:0:10]} Kg7 {[%emt 0:0:10]} 38. d6 {[%emt 0:0:12]} Rd8 {[%emt 0:0:13]} 39. Bc6 {[%emt 0:0:16]} Kf7 {[%emt 0:0:11]} 40. Bd5 {[%emt 0:0:11]
} Kg7 {[%emt 0:0:12]} 41. c4 {[%emt 0:0:12]} h5 {[%emt 0:0:15]
} 42. g3 {[%emt 0:0:11]} g5 {[%emt 0:0:12]} 43. Kg2 {[%emt 0:0:12]} g4 {[%emt 0:0:11]
} 44. Bc6 {[%emt 0:0:12]} Kf7 {[%emt 0:0:11]} 45. Bd5 {[%emt 0:0:0]} Kg7 {[%emt 0:0:11]} 46. a4 {[%emt 0:0:11]} a5 {[%emt 0:0:12]} 47. Be4 {[%emt 0:0:11]} Kf7 {[%emt 0:0:11]} 48. Bd5 {[%emt 0:0:13]} Kg7 {[%emt 0:0:11]
} 49. Re7+ {[%emt 0:0:11]} Kf6 {[%emt 0:0:12]} 50. Rf7+ {[%emt 0:0:10]
} Ke5 {[%emt 0:0:12]} 51. d7 {[%emt 0:0:11]} Kd6 {[%emt 0:0:0]} 52. Rh7 {[%emt 0:0:12]} Rxd7 {[%emt 0:0:11]} 53. Rh6+ {[%emt 0:0:11]} Kc7 {[%emt 0:0:12]} 54. Rc6+ {[%emt 0:0:11]} Kd8 {[%emt 0:0:11]} 55. Rh6 {[%emt 0:0:10]
} Re7 {[%emt 0:0:11]} 56. Rxh5 {[%emt 0:0:12]} Re2+ {[%emt 0:0:0]} 57. Kf1 {[%emt 0:0:11]} Rf2+ {[%emt 0:0:10]} 58. Ke1 {[%emt 0:0:10]} Rb2 {[%emt 0:0:11]} 59. Rg5 {[%emt 0:0:11]} Ra2 {[%emt 0:0:11]} 60. Rg8+ {[%emt 0:0:12]
} Ke7 {[%emt 0:0:12]} 61. Bf7 {[%emt 0:0:11]} Kxf7 {[%emt 0:0:0]} 62. Rxg4 {[%emt 0:0:10]} Rxa4 {[%emt 0:0:10]} 63. Rf4+ {[%emt 0:0:11]} Ke6 {[%emt 0:0:14]} 64. Kd1 {[%emt 0:0:11]} Ra1+ {[%emt 0:0:11]} 65. Kc2 {[%emt 0:0:11]
} a4 {[%emt 0:0:10]} 66. Kd3 {[%emt 0:0:10]} a3 {[%emt 0:0:11]
} 67. Re4+ {[%emt 0:0:10]} Kd6 {[%emt 0:0:11]} 68. Re2 {[%emt 0:0:11]} a2 {[%emt 0:0:10]
} 69. Ke4 {[%emt 0:0:11]} 1-0